[Event "Championnat d'Europe de Blitz"]
[Date "2024.12.09"]
[White "Aliyev, Elnur"]
[Black "Popovic, Milos T"]
[WhiteElo "2079"]
[BlackElo "2334"]
[Round "10.48"]
[Result "1-0"]
[TimeControl "180+2"]

1. e4 {[%clk 00:03:03]} c5 {[%emt 00:00:01] [%clk 00:03:03]} 2. Nf3 {[%emt
00:00:03] [%clk 00:03:03]} Nc6 {[%clk 00:03:05]} 3. Bb5 {[%clk 00:03:03]} e5
{[%emt 00:00:01] [%clk 00:03:06]} 4. O-O {[%emt 00:00:05] [%clk 00:03:00]} Nge7
{[%emt 00:00:01] [%clk 00:03:07]} 5. Na3 {[%emt 00:00:02] [%clk 00:03:00]} g6
{[%emt 00:00:21] [%clk 00:02:47]} 6. Nc4 {[%emt 00:00:02] [%clk 00:03:00]} d6
{[%emt 00:00:01] [%clk 00:02:49]} 7. b4 {[%emt 00:00:03] [%clk 00:02:59]} cxb4
{[%emt 00:01:00] [%clk 00:01:50]} 8. d4 {[%clk 00:03:00]} a6 {[%emt 00:00:10]
[%clk 00:01:42]} 9. dxe5 {[%emt 00:00:33] [%clk 00:02:29]} axb5 {[%emt 00:00:14]
[%clk 00:01:30]} 10. Nxd6+ {[%emt 00:00:03] [%clk 00:02:28]} Kd7 {[%clk
00:01:31]} 11. Nxf7+ {[%emt 00:00:03] [%clk 00:02:27]} Kc7 {[%clk 00:01:33]} 12.
Nxd8 {[%emt 00:00:06] [%clk 00:02:24]} 1-0

[Site "Europe Echecs"]

[Event "Championnat d'Europe de Blitz"]
[Date "2024.12.09"]
[White "Narva, Mai"]
[Black "Minas, Ioannis"]
[WhiteElo "2413"]
[BlackElo "1987"]
[Round "10.49"]
[Result "1-0"]
[TimeControl "180+2"]

1. e4 {[%emt 00:00:01] [%clk 00:03:03]} e5 {[%emt 00:00:01] [%clk 00:03:03]} 2.
Nf3 {[%emt 00:00:03] [%clk 00:03:04]} Nc6 {[%clk 00:03:04]} 3. Bc4 {[%clk
00:03:04]} f5 {[%emt 00:00:01] [%clk 00:03:05]} 4. d3 {[%emt 00:00:37] [%clk
00:02:28]} Nf6 {[%emt 00:00:01] [%clk 00:03:07]} 5. O-O {[%emt 00:00:04] [%clk
00:02:27]} fxe4 {[%emt 00:00:49] [%clk 00:02:19]} 6. dxe4 {[%emt 00:00:02] [%clk
00:02:27]} Bb4 {[%emt 00:00:11]} 7. a3 {[%emt 00:00:16] [%clk 00:02:12]} Ba5
{[%emt 00:00:03] [%clk 00:02:11]} 8. Ng5 {[%emt 00:00:23] [%clk 00:01:50]} Qe7
{[%emt 00:00:06] [%clk 00:02:07]} 9. Bf7+ {[%emt 00:00:09] [%clk 00:01:44]} Kf8
{[%emt 00:00:03] [%clk 00:02:05]} 10. Ba2 {[%emt 00:00:06] [%clk 00:01:40]} Nd8
{[%emt 00:00:06] [%clk 00:02:01]} 11. Nd2 {[%emt 00:00:09] [%clk 00:01:33]} h6
{[%emt 00:00:12] [%clk 00:01:51]} 12. Ngf3 {[%emt 00:00:02] [%clk 00:01:33]}
Bxd2 {[%emt 00:00:13] [%clk 00:01:40]} 13. Bxd2 {[%emt 00:00:16] [%clk
00:01:19]} g5 {[%emt 00:00:02] [%clk 00:01:40]} 14. Nxe5 {[%emt 00:00:22] [%clk
00:01:00]} Qxe5 {[%emt 00:00:06] [%clk 00:01:36]} 15. Bc3 {[%emt 00:00:01] [%clk
00:01:00]} Qe7 {[%emt 00:00:01] [%clk 00:01:37]} 16. f4 {[%emt 00:00:08] [%clk
00:00:54]} g4 {[%emt 00:00:02] [%clk 00:01:37]} 17. Qd4 {[%emt 00:00:30] [%clk
00:00:26]} Kg7 {[%emt 00:00:54] [%clk 00:00:45]} 18. e5 {[%emt 00:00:01] [%clk
00:00:27]} Kf8 {[%emt 00:00:27] [%clk 00:00:20]} 19. exf6 {[%emt 00:00:03] [%clk
00:00:26]} Qd6 {[%emt 00:00:05] [%clk 00:00:17]} 20. Bb4 {[%emt 00:00:03] [%clk
00:00:25]} 1-0

[Site "Europe Echecs"]

[Event "Championnat d'Europe de Blitz"]
[Date "2024.12.09"]
[White "Nikolaev, Georgi"]
[Black "Domalchuk-Jonasson, Aleksandr"]
[WhiteElo "2032"]
[BlackElo "2377"]
[Round "10.50"]
[Result "1-0"]
[TimeControl "180+2"]

1. e4 {[%clk 00:03:03]} e5 {[%emt 00:00:05] [%clk 00:03:01]} 2. Nf3 {[%clk
00:03:04]} Nc6 {[%clk 00:03:03]} 3. d4 {[%clk 00:03:06]} exd4 {[%emt 00:00:04]
[%clk 00:03:01]} 4. Bc4 {[%clk 00:03:07]} Nf6 {[%emt 00:00:08] [%clk 00:02:55]}
5. e5 {[%clk 00:03:08]} Ne4 {[%emt 00:00:13] [%clk 00:02:44]} 6. Qe2 {[%emt
00:00:03] [%clk 00:03:06]} Nc5 {[%emt 00:00:02] [%clk 00:02:45]} 7. O-O {[%emt
00:00:01] [%clk 00:03:07]} Ne6 {[%emt 00:00:02] [%clk 00:02:45]} 8. c3 {[%emt
00:00:09] [%clk 00:02:59]} dxc3 {[%emt 00:00:02] [%clk 00:02:46]} 9. Nxc3 {[%emt
00:00:01] [%clk 00:03:00]} d6 {[%emt 00:00:04] [%clk 00:02:44]} 10. Rd1 {[%emt
00:00:05] [%clk 00:02:57]} Be7 {[%emt 00:00:10] [%clk 00:02:35]} 11. b3 {[%emt
00:00:20] [%clk 00:02:40]} O-O {[%emt 00:00:03] [%clk 00:02:34]} 12. Bb2 {[%emt
00:00:06] [%clk 00:02:36]} Bd7 {[%emt 00:00:44] [%clk 00:01:52]} 13. Ne4 {[%emt
00:00:14] [%clk 00:02:24]} dxe5 {[%emt 00:00:21] [%clk 00:01:32]} 14. Nxe5
{[%emt 00:00:10] [%clk 00:02:17]} Nxe5 {[%emt 00:00:07] [%clk 00:01:28]} 15.
Bxe5 {[%emt 00:00:01] [%clk 00:02:17]} Qc8 {[%emt 00:00:06] [%clk 00:01:25]} 16.
Qg4 {[%emt 00:00:29] [%clk 00:01:50]} g6 {[%emt 00:00:47] [%clk 00:00:39]} 17.
Nf6+ {[%emt 00:00:32] [%clk 00:01:19]} Bxf6 {[%clk 00:00:40]} 18. Bxf6 {[%emt
00:00:01] [%clk 00:01:20]} h6 {[%clk 00:00:42]} 19. Qh4 {[%emt 00:00:19] [%clk
00:01:03]} Kh7 {[%emt 00:00:02] [%clk 00:00:42]} 20. Rd3 {[%emt 00:00:04] [%clk
00:01:01]} Ng7 {[%emt 00:00:07] [%clk 00:00:38]} 21. Rad1 {[%emt 00:00:15] [%clk
00:00:47]} Nf5 {[%emt 00:00:07] [%clk 00:00:33]} 22. Qf4 {[%emt 00:00:10] [%clk
00:00:40]} Be6 {[%emt 00:00:04] [%clk 00:00:30]} 23. g4 {[%emt 00:00:31] [%clk
00:00:11]} Bxc4 {[%emt 00:00:02] [%clk 00:00:29]} 24. Qxc4 {[%emt 00:00:05]
[%clk 00:00:09]} Nd6 {[%emt 00:00:07] [%clk 00:00:24]} 25. Qf4 {[%emt 00:00:05]
[%clk 00:00:06]} Rh8 {[%emt 00:00:22] [%clk 00:00:03]} 26. Qxh6+ {[%emt
00:00:04] [%clk 00:00:05]} Kxh6 {[%emt 00:00:02] [%clk 00:00:03]} 27. Rh3#
{[%clk 00:00:06]} 1-0

[Site "Europe Echecs"]

[Event "Championnat d'Europe de Blitz"]
[Date "2024.12.09"]
[White "Zlatkov, Anton"]
[Black "Tsolakidou, Stavroula"]
[WhiteElo "2324"]
[BlackElo "2451"]
[Round "10.51"]
[Result "1-0"]
[TimeControl "180+2"]

1. c4 {[%clk 00:03:03]} Nf6 {[%emt 00:00:04] [%clk 00:03:02]} 2. Nc3 {[%clk
00:03:04]} g6 {[%clk 00:03:02]} 3. d4 {[%emt 00:00:08] [%clk 00:02:59]} Bg7
{[%emt 00:00:01] [%clk 00:03:03]} 4. g3 {[%clk 00:03:00]} O-O {[%emt 00:00:02]
[%clk 00:03:02]} 5. Bg2 {[%emt 00:00:02] [%clk 00:03:01]} d6 {[%emt 00:00:01]
[%clk 00:03:03]} 6. Nf3 {[%emt 00:00:01] [%clk 00:03:02]} c6 {[%clk 00:03:04]}
7. O-O {[%emt 00:00:02] [%clk 00:03:01]} Qb6 {[%emt 00:00:02] [%clk 00:03:05]}
8. c5 {[%emt 00:00:02] [%clk 00:03:01]} dxc5 {[%emt 00:00:02] [%clk 00:03:04]}
9. Na4 {[%clk 00:03:03]} Qd8 {[%emt 00:00:09] [%clk 00:02:57]} 10. Nxc5 {[%emt
00:00:01] [%clk 00:03:03]} a5 {[%emt 00:00:11] [%clk 00:02:49]} 11. Bf4 {[%emt
00:00:08] [%clk 00:02:56]} Na6 {[%emt 00:00:18] [%clk 00:02:33]} 12. Nd3 {[%emt
00:00:04] [%clk 00:02:55]} Nb4 {[%emt 00:00:28] [%clk 00:02:07]} 13. a3 {[%emt
00:01:05] [%clk 00:01:52]} Nbd5 {[%emt 00:00:09] [%clk 00:02:00]} 14. Be5 {[%emt
00:00:03] [%clk 00:01:51]} Ne4 {[%emt 00:00:29] [%clk 00:01:32]} 15. Bxg7 {[%emt
00:00:09] [%clk 00:01:45]} Kxg7 {[%emt 00:00:02] [%clk 00:01:32]} 16. Nfe5
{[%emt 00:00:05] [%clk 00:01:42]} Ndf6 {[%emt 00:00:10] [%clk 00:01:25]} 17. e3
{[%emt 00:00:05] [%clk 00:01:38]} Qb6 {[%emt 00:00:10] [%clk 00:01:16]} 18. Qe2
{[%emt 00:00:12] [%clk 00:01:28]} a4 {[%emt 00:00:09] [%clk 00:01:10]} 19. Rac1
{[%emt 00:00:04] [%clk 00:01:26]} Nd6 {[%emt 00:00:22] [%clk 00:00:50]} 20. Nc5
{[%emt 00:00:05] [%clk 00:01:22]} Rd8 {[%emt 00:00:36] [%clk 00:00:16]} 21. Rfd1
{[%emt 00:00:01] [%clk 00:01:23]} Bf5 {[%emt 00:00:07] [%clk 00:00:11]} 22. g4
{[%emt 00:00:09] [%clk 00:01:16]} Bc8 {[%emt 00:00:01] [%clk 00:00:12]} 23. g5
{[%emt 00:00:02] [%clk 00:01:17]} Nd5 {[%emt 00:00:02] [%clk 00:00:12]} 24. Qd2
{[%emt 00:00:15] [%clk 00:01:04]} f6 {[%emt 00:00:08] [%clk 00:00:07]} 25. gxf6+
{[%emt 00:00:01] [%clk 00:01:04]} exf6 {[%clk 00:00:08]} 26. Ned3 {[%emt
00:00:03] [%clk 00:01:04]} Ne7 {[%emt 00:00:05] [%clk 00:00:05]} 27. Nf4 {[%emt
00:00:02] [%clk 00:01:03]} Kf7 {[%emt 00:00:04] [%clk 00:00:04]} 28. d5 {[%emt
00:00:04] [%clk 00:01:02]} g5 {[%emt 00:00:01] [%clk 00:00:04]} 29. Nfe6 {[%emt
00:00:12] [%clk 00:00:51]} Bxe6 {[%emt 00:00:02] [%clk 00:00:04]} 30. dxe6+
{[%clk 00:00:53]} Kg7 {[%emt 00:00:03] [%clk 00:00:04]} 31. Nd7 {[%clk
00:00:53]} Rxd7 {[%emt 00:00:02] [%clk 00:00:04]} 32. exd7 {[%clk 00:00:54]} Nf7
{[%clk 00:00:05]} 33. Qb4 {[%emt 00:00:07] [%clk 00:00:49]} Qxb4 {[%emt
00:00:02] [%clk 00:00:05]} 34. axb4 {[%clk 00:00:50]} Rd8 {[%clk 00:00:06]} 35.
b5 {[%emt 00:00:01] [%clk 00:00:52]} Ne5 {[%emt 00:00:03] [%clk 00:00:06]} 36.
bxc6 {[%emt 00:00:03] [%clk 00:00:51]} bxc6 {[%emt 00:00:02] [%clk 00:00:05]}
37. Rd4 {[%emt 00:00:02] [%clk 00:00:51]} Rxd7 {[%emt 00:00:04] [%clk 00:00:03]}
38. Rxd7 {[%emt 00:00:01] [%clk 00:00:51]} Nxd7 {[%clk 00:00:04]} 39. Bxc6
{[%clk 00:00:52]} 1-0

[Site "Europe Echecs"]

[Event "Championnat d'Europe de Blitz"]
[Date "2024.12.09"]
[White "Zhukovskyi, Myhaylo"]
[Black "Narva, Triin"]
[WhiteElo "2189"]
[BlackElo "2064"]
[Round "10.52"]
[Result "1-0"]
[TimeControl "180+2"]

1. Nf3 {[%clk 00:03:03]} d5 {[%emt 00:00:06] [%clk 00:02:59]} 2. g3 {[%clk
00:03:05]} Nf6 {[%emt 00:00:01] [%clk 00:03:00]} 3. Bg2 {[%clk 00:03:06]} c5
{[%emt 00:00:02] [%clk 00:03:00]} 4. O-O {[%emt 00:00:01] [%clk 00:03:06]} Nc6
{[%emt 00:00:02] [%clk 00:03:01]} 5. d4 {[%emt 00:00:01] [%clk 00:03:07]} e6
{[%emt 00:00:02] [%clk 00:03:00]} 6. c4 {[%emt 00:00:01] [%clk 00:03:09]} Be7
{[%emt 00:00:14] [%clk 00:02:48]} 7. cxd5 {[%emt 00:00:02] [%clk 00:03:08]} exd5
{[%emt 00:00:03] [%clk 00:02:47]} 8. dxc5 {[%emt 00:00:01] [%clk 00:03:09]} Bxc5
{[%clk 00:02:48]} 9. a3 {[%emt 00:00:02] [%clk 00:03:10]} a5 {[%emt 00:00:39]
[%clk 00:02:10]} 10. Nc3 {[%emt 00:00:01] [%clk 00:03:11]} O-O {[%emt 00:00:03]
[%clk 00:02:09]} 11. Bg5 {[%emt 00:00:12] [%clk 00:03:01]} Be6 {[%emt 00:00:10]
[%clk 00:02:01]} 12. Rc1 {[%emt 00:00:05] [%clk 00:02:59]} Be7 {[%emt 00:00:08]
[%clk 00:01:54]} 13. Nd4 {[%emt 00:00:04] [%clk 00:02:58]} h6 {[%emt 00:00:28]
[%clk 00:01:28]} 14. Bf4 {[%emt 00:00:13] [%clk 00:02:47]} Rc8 {[%emt 00:00:07]
[%clk 00:01:23]} 15. Qd2 {[%emt 00:00:06] [%clk 00:02:43]} Nxd4 {[%emt 00:00:16]
[%clk 00:01:09]} 16. Qxd4 {[%emt 00:00:01] [%clk 00:02:44]} Bc5 {[%clk
00:01:10]} 17. Qd2 {[%emt 00:00:03] [%clk 00:02:43]} Qd7 {[%emt 00:00:06] [%clk
00:01:06]} 18. Be5 {[%emt 00:00:06] [%clk 00:02:38]} Ng4 {[%emt 00:00:08] [%clk
00:01:00]} 19. Bd4 {[%emt 00:00:04] [%clk 00:02:37]} Bxd4 {[%emt 00:00:20] [%clk
00:00:42]} 20. Qxd4 {[%clk 00:02:38]} Rc4 {[%emt 00:00:01] [%clk 00:00:44]} 21.
Qd2 {[%emt 00:00:01] [%clk 00:02:38]} d4 {[%emt 00:00:09] [%clk 00:00:38]} 22.
Ne4 {[%emt 00:00:03] [%clk 00:02:36]} Rfc8 {[%emt 00:00:05] [%clk 00:00:35]} 23.
Rxc4 {[%emt 00:00:04] [%clk 00:02:35]} Rxc4 {[%clk 00:00:36]} 24. Qxa5 {[%emt
00:00:01] [%clk 00:02:36]} Rc2 {[%emt 00:00:04] [%clk 00:00:34]} 25. Nc5 {[%emt
00:00:14] [%clk 00:02:23]} Qe7 {[%emt 00:00:15] [%clk 00:00:21]} 26. Qa8+ {[%emt
00:00:38] [%clk 00:01:48]} Kh7 {[%clk 00:00:22]} 27. Be4+ {[%emt 00:00:01] [%clk
00:01:49]} f5 {[%emt 00:00:09] [%clk 00:00:15]} 28. Nxe6 {[%emt 00:00:15] [%clk
00:01:36]} Qxe6 {[%emt 00:00:10] [%clk 00:00:06]} 29. Bxc2 {[%emt 00:00:02]
[%clk 00:01:36]} 1-0

[Site "Europe Echecs"]

[Event "Championnat d'Europe de Blitz"]
[Date "2024.12.09"]
[White "Dragicevic, Drazen"]
[Black "Babrauskas, Darius"]
[WhiteElo "2332"]
[BlackElo "2063"]
[Round "10.53"]
[Result "1/2-1/2"]
[TimeControl "180+2"]

1. Nf3 {[%emt 00:00:01] [%clk 00:03:02]} Nf6 {[%emt 00:00:03] [%clk 00:03:03]}
2. g3 {[%clk 00:03:03]} g6 {[%clk 00:03:04]} 3. Bg2 {[%clk 00:03:04]} Bg7 {[%emt
00:00:01] [%clk 00:03:05]} 4. O-O {[%emt 00:00:02] [%clk 00:03:05]} O-O {[%emt
00:00:02] [%clk 00:03:05]} 5. d4 {[%emt 00:00:01] [%clk 00:03:06]} d5 {[%emt
00:00:01] [%clk 00:03:06]} 6. Ne5 {[%emt 00:00:02] [%clk 00:03:06]} Nbd7 {[%emt
00:00:18] [%clk 00:02:49]} 7. c4 {[%emt 00:00:02] [%clk 00:03:06]} e6 {[%emt
00:00:03] [%clk 00:02:49]} 8. Nc3 {[%emt 00:00:01] [%clk 00:03:07]} c6 {[%emt
00:00:05] [%clk 00:02:46]} 9. Nxd7 {[%emt 00:00:05] [%clk 00:03:03]} Nxd7 {[%emt
00:00:07] [%clk 00:02:42]} 10. b3 {[%emt 00:00:13] [%clk 00:02:52]} c5 {[%emt
00:00:11] [%clk 00:02:33]} 11. e3 {[%emt 00:00:23] [%clk 00:02:31]} cxd4 {[%emt
00:00:11] [%clk 00:02:23]} 12. exd4 {[%emt 00:00:01] [%clk 00:02:32]} dxc4
{[%emt 00:00:04] [%clk 00:02:22]} 13. bxc4 {[%emt 00:00:03] [%clk 00:02:31]} Nb6
{[%emt 00:00:02] [%clk 00:02:22]} 14. Ba3 {[%emt 00:00:36] [%clk 00:01:57]} Re8
{[%emt 00:00:03] [%clk 00:02:20]} 15. Qb3 {[%emt 00:01:00] [%clk 00:00:59]} a6
{[%emt 00:01:11] [%clk 00:01:12]} 16. Rfd1 {[%emt 00:00:41] [%clk 00:00:19]} Qc7
{[%emt 00:00:40] [%clk 00:00:34]} 17. c5 {[%emt 00:00:01] [%clk 00:00:20]} Nd5
{[%emt 00:00:09] [%clk 00:00:27]} 18. Nxd5 {[%emt 00:00:04] [%clk 00:00:18]}
exd5 {[%clk 00:00:28]} 19. Bxd5 {[%emt 00:00:02] [%clk 00:00:19]} Bg4 {[%emt
00:00:06] [%clk 00:00:24]} 20. Qxb7 {[%emt 00:00:08] [%clk 00:00:13]} Qxb7
{[%emt 00:00:06] [%clk 00:00:20]} 21. Bxb7 {[%clk 00:00:14]} Rab8 {[%clk
00:00:21]} 22. c6 {[%emt 00:00:08] [%clk 00:00:08]} Bf3 {[%emt 00:00:11] [%clk
00:00:12]} 23. d5 {[%emt 00:00:04] [%clk 00:00:06]} Bxa1 {[%emt 00:00:01] [%clk
00:00:13]} 24. Rxa1 {[%emt 00:00:01] [%clk 00:00:08]} Bxd5 {[%emt 00:00:03]
[%clk 00:00:11]} 25. Bd6 {[%emt 00:00:05] [%clk 00:00:05]} Rxb7 {[%clk
00:00:12]} 26. cxb7 {[%emt 00:00:01] [%clk 00:00:06]} Bxb7 {[%clk 00:00:13]} 27.
Rb1 {[%emt 00:00:02] [%clk 00:00:07]} Bd5 {[%clk 00:00:14]} 28. Ra1 {[%emt
00:00:04] [%clk 00:00:05]} Re2 {[%emt 00:00:02] [%clk 00:00:13]} 29. a3 {[%emt
00:00:02] [%clk 00:00:06]} f6 {[%emt 00:00:03] [%clk 00:00:12]} 30. Bc5 {[%emt
00:00:01] [%clk 00:00:06]} Bf3 {[%emt 00:00:02] [%clk 00:00:12]} 31. Be3 {[%emt
00:00:03] [%clk 00:00:06]} g5 {[%emt 00:00:02] [%clk 00:00:11]} 32. h3 {[%clk
00:00:08]} h5 {[%emt 00:00:01] [%clk 00:00:12]} 33. Kh2 {[%emt 00:00:02] [%clk
00:00:08]} g4 {[%emt 00:00:01] [%clk 00:00:13]} 34. hxg4 {[%clk 00:00:09]} hxg4
{[%clk 00:00:14]} 35. Rc1 {[%emt 00:00:02] [%clk 00:00:10]} Kf7 {[%clk
00:00:15]} 36. Rc7+ {[%emt 00:00:02] [%clk 00:00:10]} Kg6 {[%emt 00:00:02] [%clk
00:00:15]} 37. Rc1 {[%emt 00:00:01] [%clk 00:00:11]} Ra2 {[%clk 00:00:16]} 38.
Bc5 {[%emt 00:00:02] [%clk 00:00:11]} 1/2-1/2

[Site "Europe Echecs"]

[Event "Championnat d'Europe de Blitz"]
[Date "2024.12.09"]
[White "Smeets, Jan"]
[Black "Yuste Valenzuela, Alejandro"]
[WhiteElo "2552"]
[BlackElo "2150"]
[Round "10.54"]
[Result "1-0"]
[TimeControl "180+2"]

1. e4 {[%emt 00:00:01] [%clk 00:03:03]} g6 {[%emt 00:00:01] [%clk 00:03:03]} 2.
d4 {[%emt 00:00:03] [%clk 00:03:04]} Bg7 {[%clk 00:03:04]} 3. Nc3 {[%clk
00:03:06]} c6 {[%emt 00:00:02] [%clk 00:03:04]} 4. f4 {[%emt 00:00:01] [%clk
00:03:07]} d5 {[%emt 00:00:01] [%clk 00:03:05]} 5. e5 {[%clk 00:03:08]} Nh6
{[%emt 00:00:01] [%clk 00:03:06]} 6. Nf3 {[%emt 00:00:05] [%clk 00:03:05]} Bg4
{[%emt 00:00:01] [%clk 00:03:06]} 7. h3 {[%emt 00:00:28] [%clk 00:02:39]} Bxf3
{[%emt 00:00:02] [%clk 00:03:07]} 8. Qxf3 {[%emt 00:00:01] [%clk 00:02:39]} Nf5
{[%emt 00:00:02] [%clk 00:03:07]} 9. Ne2 {[%emt 00:00:02] [%clk 00:02:39]} h5
{[%emt 00:00:02] [%clk 00:03:07]} 10. g4 {[%emt 00:00:14] [%clk 00:02:27]} Nh4
{[%emt 00:00:35] [%clk 00:02:34]} 11. Qg3 {[%emt 00:00:22] [%clk 00:02:07]} e6
{[%emt 00:00:03]} 12. Be3 {[%emt 00:00:18] [%clk 00:01:50]} Bf8 {[%emt 00:00:40]
[%clk 00:01:57]} 13. O-O-O {[%emt 00:00:23] [%clk 00:01:29]} Be7 {[%clk
00:01:58]} 14. Kb1 {[%emt 00:00:01] [%clk 00:01:30]} Nd7 {[%clk 00:01:58]} 15.
Nc1 {[%emt 00:00:08] [%clk 00:01:24]} c5 {[%emt 00:00:08] [%clk 00:01:52]} 16.
c4 {[%emt 00:00:05] [%clk 00:01:22]} cxd4 {[%emt 00:00:10] [%clk 00:01:44]} 17.
Bxd4 {[%clk 00:01:23]} dxc4 {[%emt 00:00:25] [%clk 00:01:21]} 18. Bxc4 {[%clk
00:01:24]} Qa5 {[%emt 00:00:24] [%clk 00:00:59]} 19. Nb3 {[%emt 00:00:28] [%clk
00:00:57]} Qb4 {[%emt 00:00:01] [%clk 00:01:00]} 20. Qd3 {[%emt 00:00:12] [%clk
00:00:47]} O-O-O {[%emt 00:00:11] [%clk 00:00:52]} 21. a3 {[%emt 00:00:05] [%clk
00:00:44]} Qa4 {[%emt 00:00:21] [%clk 00:00:32]} 22. Bb5 {[%clk 00:00:45]} Nc5
{[%emt 00:00:11] [%clk 00:00:24]} 23. Nxc5 {[%emt 00:00:05] [%clk 00:00:42]}
Qxd4 {[%emt 00:00:07] [%clk 00:00:18]} 24. Qxd4 {[%emt 00:00:01] [%clk
00:00:42]} Rxd4 {[%emt 00:00:02] [%clk 00:00:19]} 25. Rxd4 {[%emt 00:00:01]
[%clk 00:00:43]} Bxc5 {[%emt 00:00:03] [%clk 00:00:18]} 26. Rc1 {[%emt 00:00:01]
[%clk 00:00:44]} b6 {[%emt 00:00:04] [%clk 00:00:16]} 27. b4 {[%emt 00:00:01]
[%clk 00:00:45]} 1-0

[Site "Europe Echecs"]

[Event "Championnat d'Europe de Blitz"]
[Date "2024.12.09"]
[White "Van Foreest, Jorden"]
[Black "Jobava, Baadur"]
[WhiteElo "2677"]
[BlackElo "2578"]
[Round "11.1"]
[Result "1/2-1/2"]
[TimeControl "180+2"]

1. d4 {[%emt 00:18:32] [%clk 00:03:02]} d5 {[%emt 00:00:03] [%clk 00:03:02]} 2.
c4 {[%emt 00:00:05] [%clk 00:03:00]} dxc4 {[%clk 00:03:03]} 3. Nf3 {[%emt
00:00:03] [%clk 00:02:59]} Nf6 {[%emt 00:00:01] [%clk 00:03:04]} 4. e3 {[%emt
00:00:01] [%clk 00:03:00]} Bg4 {[%emt 00:00:01] [%clk 00:03:04]} 5. h3 {[%emt
00:00:05] [%clk 00:02:58]} Bh5 {[%emt 00:00:01] [%clk 00:03:05]} 6. Nbd2 {[%clk
00:02:59]} e6 {[%emt 00:00:04] [%clk 00:03:04]} 7. Nxc4 {[%emt 00:00:02] [%clk
00:02:58]} Bb4+ {[%emt 00:00:03] [%clk 00:03:03]} 8. Bd2 {[%emt 00:00:03] [%clk
00:02:56]} Bxd2+ {[%emt 00:00:02] [%clk 00:03:04]} 9. Qxd2 {[%emt 00:00:14]
[%clk 00:02:44]} Bxf3 {[%emt 00:00:04] [%clk 00:03:01]} 10. gxf3 {[%emt
00:00:02] [%clk 00:02:44]} Nbd7 {[%emt 00:00:03] [%clk 00:03:01]} 11. f4 {[%emt
00:00:09] [%clk 00:02:37]} O-O {[%emt 00:00:04] [%clk 00:02:59]} 12. Bg2 {[%emt
00:00:03] [%clk 00:02:36]} c6 {[%emt 00:00:02] [%clk 00:02:59]} 13. O-O {[%emt
00:00:05] [%clk 00:02:33]} a5 {[%emt 00:00:14] [%clk 00:02:47]} 14. b4 {[%emt
00:00:21] [%clk 00:02:14]} axb4 {[%emt 00:00:09] [%clk 00:02:40]} 15. Qxb4
{[%emt 00:00:02] [%clk 00:02:14]} Ra7 {[%emt 00:00:01] [%clk 00:02:41]} 16. a4
{[%emt 00:00:01] [%clk 00:02:15]} Nd5 {[%emt 00:00:02] [%clk 00:02:41]} 17. Qb3
{[%emt 00:00:16] [%clk 00:02:01]} Qc7 {[%emt 00:00:12] [%clk 00:02:32]} 18. a5
{[%emt 00:00:06] [%clk 00:01:56]} g6 {[%emt 00:00:04] [%clk 00:02:29]} 19. Rab1
{[%emt 00:00:07] [%clk 00:01:51]} Rb8 {[%emt 00:00:05] [%clk 00:02:27]} 20. Rfc1
{[%emt 00:00:03] [%clk 00:01:50]} Qd8 {[%emt 00:00:05] [%clk 00:02:25]} 21. Qd1
{[%emt 00:00:06] [%clk 00:01:45]} Qe7 {[%emt 00:00:13] [%clk 00:02:14]} 22. Rb3
{[%emt 00:00:10] [%clk 00:01:37]} Nc7 {[%emt 00:00:09] [%clk 00:02:07]} 23. Qd2
{[%emt 00:00:08] [%clk 00:01:30]} Nb5 {[%emt 00:00:04] [%clk 00:02:06]} 24. Qb4
{[%emt 00:00:01] [%clk 00:01:31]} Qxb4 {[%emt 00:00:04] [%clk 00:02:05]} 25.
Rxb4 {[%emt 00:00:01] [%clk 00:01:31]} Kf8 {[%emt 00:00:05] [%clk 00:02:03]} 26.
Rcb1 {[%emt 00:00:28] [%clk 00:01:05]} Ke7 {[%emt 00:00:03] [%clk 00:02:02]} 27.
R1b2 {[%emt 00:00:03] [%clk 00:01:03]} Nd6 {[%emt 00:00:12] [%clk 00:01:52]} 28.
Ne5 {[%emt 00:00:25] [%clk 00:00:40]} Nxe5 {[%emt 00:00:09] [%clk 00:01:45]} 29.
fxe5 {[%emt 00:00:01] [%clk 00:00:40]} Nb5 {[%clk 00:01:47]} 30. e4 {[%emt
00:00:18] [%clk 00:00:24]} Rxa5 {[%emt 00:00:17] [%clk 00:01:32]} 31. d5 {[%clk
00:00:26]} Rba8 {[%emt 00:00:15] [%clk 00:01:20]} 32. Bf1 {[%emt 00:00:01] [%clk
00:00:26]} f6 {[%emt 00:01:02] [%clk 00:00:20]} 33. exf6+ {[%emt 00:00:02] [%clk
00:00:26]} Kxf6 {[%emt 00:00:01] [%clk 00:00:21]} 34. Bxb5 {[%emt 00:00:04]
[%clk 00:00:23]} Rxb5 {[%emt 00:00:02] [%clk 00:00:22]} 35. Rxb5 {[%clk
00:00:24]} cxb5 {[%clk 00:00:24]} 36. Rxb5 {[%clk 00:00:25]} exd5 {[%emt
00:00:05] [%clk 00:00:20]} 37. Rxb7 {[%emt 00:00:03] [%clk 00:00:25]} dxe4
{[%emt 00:00:14] [%clk 00:00:08]} 1/2-1/2

[Site "Europe Echecs"]